[Event "Benidorm Open-A 2022"]
[Site "Benidorm"]
[Date "2022.12.08"]
[Round "6.23"]
[White "Gil Lopez, Alejandro"]
[Black "Priyanka, Kumari"]
[Result "0-1"]
[ECO "C55"]
[WhiteElo "2041"]
[BlackElo "1910"]
[Annotator "TA"]
[PlyCount "64"]
[EventDate "2022.12.03"]
[EventType "swiss"]
[EventCountry "ESP"]
[SourceTitle "playchess.com"]
[Source "ChessBase"]
[SourceQuality "1"]
[TimeControl "5400+30"]

{[%evp 9,64,14,41,0,20,13,12,-34,-36,-34,0,0,0,0,5,-22,-30,-27,-17,-22,-23,-25,-25,-22,-22,-24,-18,-21,-23,-50,-47,-50,-43,-43,-45,-56,-52,-84,-80,-108,-102,-101,-103,-171,-172,-171,-178,-166,-172,-435,-435,-435,-428,-412,-364,-362,-362]} 1. e4 e5 2. Nf3 Nc6 3. Bc4 Nf6 4. d3 h6 5. h3 d6 6. Be3 {C55: Two Knights: 4 d3, 4 d4 exd4 5 e5 and Max Lange Attack.} d5 7. exd5 Nxd5 8. Bxd5 (8. O-O $11) 8... Qxd5 $15 9. Nc3 {[#]} Qd8 $146 ({Predecessor:} 9... Qd7 10. d4 Bd6 11. d5 Ne7 12. Qd2 Ng6 13. O-O-O Bc5 14. d6 cxd6 15. a3 Bxe3 16. Qxe3 {0-1 (16) Engelbrecht,R (809)-Burgers,A (797) Cape Town 2016}) 10. d4 exd4 11. Nxd4 Nxd4 12. Qxd4 (12. Bxd4 $5 {[%cal Rd1e2]} Be6 13. O-O $11) 12... Qxd4 13. Bxd4 Bd7 {Inhibits Nb5.} 14. O-O-O O-O-O $1 15. Rhe1 (15. Bxa7 $2 {loses.} b6 16. f3 Kb7 17. Bxb6 (17. Nb5 $2 Be7 $19) 17... cxb6 $19) 15... Bc6 16. f3 f6 17. Ne4 (17. Bxa7 $2 Rxd1+ 18. Rxd1 b6 $19) 17... h5 18. c3 (18. Bxa7 $2 Rxd1+ 19. Rxd1 b6 $17) 18... h4 19. Bc5 (19. Bxa7 $2 {too greedy.} Rxd1+ 20. Rxd1 b6 $19) 19... Rxd1+ 20. Rxd1 Bxe4 21. Bxf8 Rxf8 22. fxe4 {[%mdl 4096] Endgame KR-KR} Re8 23. Rd4 {[%cal Oe4e5]} Re5 24. Kd1 {[#]} b6 $1 {[%cal Bb7b6,Bb6b5][%mdl 32]} 25. Ke2 c5 {[%cal Bc7c5,Bc5c4][%mdl 32]} 26. Ra4 (26. Rd2 $17) 26... Kb7 $19 {Threatens to win with ...b5.} 27. Kf3 b5 28. Ra3 {[%cal Oc3c4]} Rg5 {Against c4} 29. Rb3 $2 {[#]} (29. g4) 29... c4 30. Ra3 Kb6 31. b4 Rg3+ 32. Kf2 a6 {Weighted Error Value: White=0.26 (precise) /Black=0.05 (flawless)} 0-1

[Event "Benidorm Open-A 2022"]
[Site "Benidorm"]
[Date "2022.12.08"]
[Round "6.24"]
[White "Kocak, Ediz"]
[Black "Plaskett, H James"]
[Result "1-0"]
[ECO "B90"]
[WhiteElo "2115"]
[BlackElo "2365"]
[Annotator "TA"]
[PlyCount "65"]
[EventDate "2022.12.03"]
[EventType "swiss"]
[EventCountry "ESP"]
[SourceTitle "playchess.com"]
[Source "ChessBase"]
[SourceQuality "1"]
[TimeControl "5400+30"]

{[%evp 13,65,6,25,0,66,66,63,49,100,100,76,77,85,82,101,82,98,86,90,77,89,94,97,95,70,82,90,88,154,152,192,192,239,158,122,73,235,231,240,242,233,225,465,216,382,201,199,200,310,284,302,223,889,602]} 1. e4 c5 2. Nf3 d6 3. d4 cxd4 4. Nxd4 Nf6 5. Nc3 a6 6. Rg1 e5 7. Nb3 Be6 8. g4 {[%cal Bg2g4,Bg4g5][%mdl 32] B90: Sicilian Najdorf: Unusual White 6th moves, 6 Be3 Ng4 and 6 Be3 e5.} Be7 ({Better is} 8... h6 $11) 9. g5 $14 Nfd7 10. Be3 {White is slightly better.} Nb6 ({Black should try} 10... O-O $14) 11. Qd2 $16 {White is more active.} N8d7 12. O-O-O {[#]} Rc8 $146 ({Predecessor:} 12... O-O 13. Nd5 Nxd5 14. exd5 Bf5 15. Bd3 Bxd3 16. Qxd3 Qc7 17. f4 f5 18. Qe2 Rac8 {½-½ (71) Tirard,H (2491)-Iotov,V (2509) Fouesnant 2007}) 13. Kb1 O-O 14. h4 Nc4 15. Bxc4 Rxc4 16. Qd3 Qc7 17. Nd2 Nc5 18. Bxc5 Rxc5 19. Nd5 Bxd5 20. exd5 Rc8 (20... Qd7 $142) 21. c3 Qd7 {[#]} 22. Ne4 $1 Rc4 (22... Ra5 {is a better defense.} 23. b3 Kh8) 23. h5 {[%cal Of2f4] Black must now prevent f4!} g6 24. b3 (24. Rg3 $142) 24... R4c7 $2 {Black cannot hold the game after this.} (24... Rxe4 $16 {keeps fighting.} 25. Qxe4 Rxc3) 25. Rg3 {[%cal Bg1g3,Bg3h3,Bh3h5][%mdl 32]} b5 26. Rh1 Kg7 27. Rgh3 Rh8 $2 {[#]} (27... Rg8 28. Qe3 Qf5) 28. Ka1 (28. h6+ $142 Kf8 29. f4) 28... Rcc8 $2 (28... Qf5 29. Qe3 Rb7 30. h6+ Kg8) 29. Qf3 (29. h6+ $142 Kf8 30. Rf1) 29... Qf5 $18 30. Qg2 gxh5 (30... Kg8 $142 31. f3 a5) 31. Rxh5 {Strongly threatening R1h3.} Rcg8 32. Nf6 Qc2 $2 (32... Kf8) 33. Qf3 {Weighted Error Value: White=0.35/Black=0.54} ({Inferior is} 33. Nxh7 Qxc3+ 34. Kb1 Qd3+ 35. Ka1 Qd4+ 36. Kb1 Qd3+ 37. Ka1 Qd2 $19) ({Worse is} 33. Rxh7+ Rxh7 34. Rxh7+ Kf8 $15) 1-0

[Event "Benidorm Open-A 2022"]
[Site "Benidorm"]
[Date "2022.12.08"]
[Round "6.26"]
[White "Cabezas Ayala, Ivan"]
[Black "Troffiguer, Olivier"]
[Result "1-0"]
[ECO "B13"]
[WhiteElo "2259"]
[BlackElo "2007"]
[Annotator "TA"]
[PlyCount "77"]
[EventDate "2022.12.03"]
[EventType "swiss"]
[EventCountry "ESP"]
[SourceTitle "playchess.com"]
[Source "ChessBase"]
[SourceQuality "1"]
[TimeControl "5400+30"]

{[%evp 12,76,3,0,16,-24,-11,-14,3,-37,-20,-22,-22,-11,-20,-12,-9,-33,30,0,35,26,26,20,22,0,0,0,10,0,0,-35,0,0,6,13,8,-66,-69,-126,-107,-95,-98,-96,-95,-120,-122,-310,-293,-291,0,0,0,-42,0,-1055,-1022,-2267,0,-12836,-12832,-12829,-12822,-1376,-210,-29989,29999]} 1. e4 c6 2. d4 d5 3. exd5 cxd5 4. c4 Nf6 5. Nc3 Nc6 6. Bg5 Be6 7. Nf3 g6 {B13: Caro-Kann: Exchange Variation and Panov-Botvinnik Attack.} 8. c5 (8. Qb3 {seems wilder.} Na5 9. Qa3 h6 10. cxd5 Nxd5 11. Bb5+) 8... Bg7 (8... Ne4 {is interesting.} 9. Bb5 Bg7 10. Bf4 Bg4) 9. Bb5 O-O {The position is equal.} (9... Ne4 {is more complex.} 10. Bf4 Bg4 11. Qa4 O-O) 10. O-O Bg4 (10... Ne4 {feels hotter.} 11. Bxc6 bxc6 12. Re1 Rb8) 11. Bxc6 bxc6 12. h3 Bxf3 13. Qxf3 h6 14. Bf4 {[#]} Ne4 $146 (14... Nd7 $15) ({Predecessor:} 14... Nd7 15. Rad1 e5 16. dxe5 Nxe5 17. Qg3 Nc4 18. b3 Na3 19. Ne2 Re8 20. Nd4 Rc8 {0-1 (43) Baskin,R (2383)-Sevgi,V (2344) Chess.com INT 2021}) 15. Rad1 $11 Nxc3 16. Qxc3 a5 17. Rfe1 e6 18. Rd3 a4 19. Qd2 Kh7 20. Rf3 {Black must now prevent Bd6.} Ra7 21. Qb4 Qa8 22. Bd6 Rb7 23. Qd2 Re8 24. Qf4 (24. Ra3 $11) 24... Qa5 $15 25. Ree3 (25. Re2 $15) 25... Qb4 (25... Rxb2 $2 26. Qxf7 Qd8 27. Rg3 Rb1+ 28. Kh2 $18) 26. Be5 Bxe5 (26... Qxb2 {keeps more tension.} 27. Bxg7 Kxg7 28. Qe5+ Kg8) 27. Qxe5 Qxb2 28. Rf6 Qxa2 29. Ref3 (29. h4 $17) 29... Ree7 $1 $19 30. Kh2 a3 $2 (30... Qd2 $19 {Threatens to win with ...Qc1.} 31. Re3 Qa5) 31. h4 $11 h5 {Strongly threatening ...Qb2.} 32. Rg3 Qb2 33. Rg5 $2 {[%mdl 8192]} (33. Qg5 $11 Qc2 34. Rxa3) 33... Qc1 $1 $19 {Hoping for ...a2.} (33... a2 34. Rxh5+ $1 {[%mdl 512]} Kg8 35. Rh8+ $3 {[%mdl 512]} Kxh8 36. Rxf7+ Kg8 37. Qg7#) 34. f4 Qd1 $2 ({Black should play} 34... Rb1 $19 {( -> ...Qg1+)} 35. Kg3 Rb3+ 36. Kh2 Qe3 37. Qxe3 Rxe3) 35. Rxf7+ $4 {[%mdl 8192]} Rxf7 36. Qxe6 Qd3 (36... Rxf4 $2 37. Qxg6+ Kh8 38. Qg8#) 37. f5 {[#]} Rg7 $2 (37... gxf5 $2 {is a self mate.} 38. Qg6+ Kh8 39. Qg8#) (37... Qxf5 $1 38. Rxf5 Rxf5 39. Qxc6 Ra7) 38. Rxg6 (38. fxg6+ $19 Qxg6 39. Rxg6 Rxg6 40. Qh3) 38... Qe4 $4 {[%mdl 8192]} ({Don't take} 38... Qxd4 39. Rh6#) (38... Qd2 {and all is fine.} 39. Qd6 a2 40. Rg5 Rxg5 41. hxg5 Qxg5 42. Qg6+ Qxg6 43. fxg6+ Kxg6 44. Kg3 a1=Q 45. Kf3 Qxd4 46. g4 Rb3+ 47. Kg2 Qd2+ 48. Kh1 Rb1#) 39. Rh6# {Weighted Error Value: White=0.86/Black=0.65} 1-0

[Event "Benidorm Open-A 2022"]
[Site "Benidorm"]
[Date "2022.12.08"]
[Round "6.27"]
[White "Garcia Callejo, Jesus"]
[Black "Parramon Ros, Francesc"]
[Result "1-0"]
[ECO "B10"]
[WhiteElo "2140"]
[BlackElo "2003"]
[Annotator "TA"]
[PlyCount "139"]
[EventDate "2022.12.03"]
[EventType "swiss"]
[EventCountry "ESP"]
[SourceTitle "playchess.com"]
[Source "ChessBase"]
[SourceQuality "1"]
[TimeControl "5400+30"]

{[%evp 9,139,35,58,54,58,29,77,66,69,70,65,20,24,27,210,18,37,39,49,37,105,106,100,103,159,103,123,96,76,83,104,102,114,81,83,78,95,95,158,64,121,115,122,63,80,69,74,48,57,13,18,0,46,18,18,23,72,81,77,58,97,61,109,35,45,27,20,0,0,0,0,0,44,14,20,0,0,0,39,0,45,45,39,30,30,30,30,30,30,14,14,14,14,14,179,14,19,4,4,4,4,0,0,0,35,4,4,4,66,66,667,391,335,329,1520,1415,1512,1388,1284,1247,1164,1086,29976,29977,29976,29977,29977,29978,29978,29979,29976,29977]} 1. e4 {[%cal Be2e4,Be4e5][%mdl 32]} c6 2. Nc3 d5 3. Nf3 Nf6 4. e5 Ne4 5. Ne2 e6 6. d3 {[%cal Bd2d3,Bd3d4][%mdl 32] B11: Caro-Kann: Two Knights Variation.} Nc5 7. Ng3 b6 (7... Ncd7 $11 {should be considered.}) 8. d4 $16 {White is better.} Ncd7 9. Bd3 Ba6 {[#]} 10. Ng5 $146 {[%cal Og5e6]} ({Predecessor:} 10. O-O c5 11. c3 Bxd3 12. Qxd3 Nc6 13. Bg5 Be7 14. h4 O-O 15. Bxe7 Qxe7 16. Ng5 {½-½ (58) Tregubov,P (2546)-Devaev,A (2325) Chess.com INT 2021}) 10... Bxd3 11. Qxd3 ({Much worse is} 11. cxd3 h6 12. Nf3 (12. Qh5 g6 $17) 12... c5 $15) 11... c5 $2 (11... h6 $11 {and Black has nothing to worry.} 12. Nf3 c5) 12. c3 $2 (12. Nxh7 $2 {perishes.} c4 13. Qf3 Rxh7 $19) (12. Qf3 $18 {[%csl Gg5][%cal Rf3f7]} Qe7 13. N3e4 Nxe5 14. dxe5) 12... cxd4 13. cxd4 $40 {[%mdl 128] White mounts an attack.} Nc6 14. a3 Qe7 (14... h6 $14 15. Nf3 Be7) 15. Be3 h6 16. Nf3 O-O-O ({Black should play} 16... Qd8) 17. Qa6+ ({White should try} 17. O-O) 17... Kb8 18. Rc1 Rc8 19. O-O Qe8 20. b4 {White has more active pieces. The black rooks are badly placed.} Ka8 21. Rc3 Ndb8 22. Qd3 Qd7 23. Rfc1 Ne7 (23... a6 $142) 24. Nd2 (24. Rxc8 $16 Nxc8 25. b5) 24... g6 (24... Rxc3 $14 25. Rxc3 (25. Qxc3 g6 $14) 25... h5) 25. Rxc8 Nxc8 26. Nge4 Bg7 $14 27. Nc3 Ne7 28. Nb5 Rc8 {Prevents Rc7.} 29. Nb3 Rxc1+ 30. Bxc1 Nc8 (30... h5 $11) 31. g4 Qc6 32. Nc3 Ne7 (32... Qc4 $11 {was preferrable.} 33. Qxc4 dxc4) 33. b5 $16 Qe8 34. a4 Nd7 35. Qf3 Kb8 (35... g5 $14) 36. Bd2 (36. Ba3 $16) 36... g5 $14 37. Nc1 (37. Na2 {is more complex.} Kb7 38. Nb4 f6 39. exf6 Nxf6 40. Qe3) 37... Ng6 38. Nd3 Nh4 39. Qe2 Bf8 40. f4 Be7 (40... Qc8 $5 {[%cal Rc8c4]}) 41. f5 Qc8 42. fxe6 (42. f6 $5 {[%cal Rf6e7]} Ba3 43. Qe3 $11) 42... fxe6 {White must now prevent ...Qc4.} 43. Ne1 $1 Qf8 44. Qf2 Qxf2+ 45. Kxf2 Bb4 46. Nb1 Bxd2 47. Nxd2 $11 {[%mdl 4096] Endgame KNN-KNN} Nf8 48. Nd3 Nfg6 49. Nb4 Nf4 50. Nf3 Nxf3 51. Kxf3 {aiming for Nc6+. KN-KN} Kb7 (51... Kc7 $11 {and Black is okay.}) 52. h4 $2 (52. Nc6 $18) 52... Ng6 53. h5 Nh8 54. Nc6 {And now Nd8+ would win.} Nf7 {Against Nd8+} 55. Ne7 Kc7 56. Ke3 Kb7 57. Kd3 Kc7 58. Kc3 Kb7 (58... Kd7 $11 59. Ng8 Kd8) 59. Ng8 a5 $2 {[%mdl 8192]} (59... Kc8 $14) 60. bxa6+ $1 $18 Kxa6 61. Kb4 $1 Kb7 $2 (61... Ka7 62. Kb5 Kb7) 62. Kb5 Kc7 63. Nf6 {White wants to mate with Ne8+.} Nd8 64. Ne8+ Kb7 65. Nd6+ $1 Kc7 {[#]} 66. Ka6 $1 {White mates.} Kc6 67. Ka7 Kc7 {[#]} 68. Nb5+ $1 Kc6 69. Kb8 Kd7 70. Na7 {Weighted Error Value: White=0.26 (precise) /Black=0.36} 1-0

[Event "Benidorm Open-A 2022"]
[Site "Benidorm"]
[Date "2022.12.08"]
[Round "6.28"]
[White "Perez Ruiz, Santiago"]
[Black "Draghici Flutur, Gavril"]
[Result "0-1"]
[ECO "D24"]
[WhiteElo "1966"]
[BlackElo "2012"]
[Annotator "TA"]
[PlyCount "62"]
[EventDate "2022.12.03"]
[EventType "swiss"]
[EventCountry "ESP"]
[SourceTitle "playchess.com"]
[Source "ChessBase"]
[SourceQuality "1"]
[TimeControl "5400+30"]

{[%evp 10,62,-32,-40,-41,-50,-51,-36,-16,-47,-47,-48,-43,-66,-55,-61,-39,-39,0,-9,0,-27,49,23,47,0,0,-117,-105,-173,-152,-157,-112,-826,-820,-1006,-1006,-918,-489,-1297,-1272,-1605,-1276,-1767,-1653,-1186,-952,-976,-867,-29947,-29948,-29944,-5481,-1515,-1108]} 1. d4 d5 2. Nf3 Nf6 3. c4 dxc4 4. Nc3 a6 5. a4 Nc6 6. Bg5 h6 {Inhibits e4. D24: Queen's Gambit Accepted: 3 Nf3 Nf6 4 Nc3.} 7. Bf4 Bg4 8. e3 {[#]} Nd5 $146 {Black is slightly better.} (8... Na5 $5 {[%cal Re7e6]}) ({Predecessor:} 8... Na5 9. Be2 Bxf3 10. Bxf3 e6 11. e4 Nb3 12. Be3 Nxa1 13. Qxa1 c6 14. O-O Bb4 {0-1 (30) Zuluaga Mancilla,C (2226)-Simonenko,S (2409) Turin 2006}) 9. Nxd5 Qxd5 10. Be2 $1 {Inhibits e5.} ({But not} 10. Bxc7 e5 11. Be2 exd4 12. exd4 Bb4+ 13. Kf1 Rc8 $19) 10... e5 11. dxe5 Bb4+ 12. Kf1 Qc5 $36 {[%mdl 2048] Black has good play. Black has more active pieces. The white rooks are badly placed.} 13. Qc2 Na5 14. Nd4 Bxe2+ 15. Kxe2 Nc6 (15... g6 $11) 16. Rhd1 O-O-O {[%cal Rd8d4] [#] Hoping for ...Rxd4.} (16... Nxe5 $2 17. Qe4 f6 18. Bxe5 Qxe5 19. Qxb7 $18) 17. Qf5+ (17. Qe4 $14) 17... Kb8 $11 {[%cal Rd8d4] Strongly threatening ...Rxd4.} 18. Nxc6+ (18. Qe4 $11) 18... Qxc6 $17 19. f3 (19. h4 $17) 19... Rxd1 20. Rxd1 Qxa4 21. Rd4 $2 {[%mdl 8192] Now White is beyond hope.} (21. e6 $17) 21... Qa1 $19 {[%csl Gb4][%cal Ra1e1] [#]} 22. Rd1 {Inhibits Qe1+.} Qxb2+ 23. Kf1 g5 24. Qf6 (24. Rb1 $142 Qa3 25. Bg3) 24... Rc8 {...c3 is the strong threat.} 25. Bg3 Qc2 26. Rd8 Qc1+ 27. Ke2 Rxd8 28. Qxd8+ Ka7 29. Qd4+ c5 30. Qd8 Qc2+ 31. Kf1 Qd3+ {Weighted Error Value: White=1.42/Black=0.63} 0-1

[Event "Benidorm Open-A 2022"]
[Site "Benidorm"]
[Date "2022.12.08"]
[Round "6.29"]
[White "Nurgaliyev, Sauat"]
[Black "Clemente Llamero, Roberto"]
[Result "0-1"]
[ECO "C60"]
[WhiteElo "2113"]
[BlackElo "1955"]
[Annotator "TA"]
[PlyCount "156"]
[EventDate "2022.12.03"]
[EventType "swiss"]
[EventCountry "ESP"]
[SourceTitle "playchess.com"]
[Source "ChessBase"]
[SourceQuality "1"]
[TimeControl "5400+30"]

{[%evp 14,155,29,21,41,15,22,5,16,0,10,8,14,0,0,0,19,0,-6,0,0,-64,-29,-35,-10,-55,4,6,33,25,32,32,142,132,119,122,156,0,5,0,0,0,104,100,109,118,189,25,97,96,95,77,147,-417,-413,-1159,-1148,-1025,-443,-405,-323,-327,-296,-301,-296,-347,-333,-547,-540,-541,-530,-527,-477,-686,-684,-677,-676,-655,-633,-611,-607,-1634,-1612,-1531,-1116,-661,-606,-1600,-1582,-29975,-29976,-29978,-29979,-29979,-29980,-29980,-29979,-29981,-29981,-29981,-29982,-29985,-29985,-29990,-29980,-29990,-29991,-29991,-29990,-29990,-29991,-29991,-29991,-29991,-29987,-29987,-29985,-29985,-29985,-29985,-29986,-29986,-29987,-29987,-29988,-29989,-29988,-29988,-29989,-29990,-29991,-29992,-29992,-29992,-29993,-29994,-29995,-29995,-29996,-29997,-29998,-29998,-29999,-29999]} 1. e4 e5 2. Nf3 Nc6 3. Bb5 {[%cal Bf1b5,Bb5a4,Ba4b3][%mdl 32]} Nge7 4. O-O a6 5. Ba4 g6 6. c3 Bg7 7. d4 exd4 8. cxd4 b5 {Inhibits d5. C60: Ruy Lopez: Unusual Black 3rd moves and 3...g6.} 9. Bb3 O-O 10. Nc3 Na5 {The position is equal.} 11. Bc2 d6 12. h3 Bb7 13. Bf4 Rc8 14. Qc1 c5 15. dxc5 Rxc5 16. Rd1 Nc4 {[%cal Oc4b2]} 17. Nd4 (17. Bb3 $11) 17... Rc8 {[#] Black is more active.} 18. b3 $146 ({Predecessor:} 18. Nce2 d5 19. b3 Ne5 20. Bh6 Qc7 21. Bxg7 Kxg7 22. f4 N5c6 23. Qb2 Kg8 24. Rac1 dxe4 25. Bxe4 {½-½ (47) Srija,S (2166)-Shyam,N (2440) Sharjah 2017}) 18... Ne5 (18... Nb6 $5 {[%cal Rc8c3]} 19. Qd2 d5 $11) 19. Qe3 (19. Qd2 {is interesting.} N5c6 20. Nce2 Nxd4 21. Nxd4 Bxd4 22. Qxd4 Rxc2 23. Bh6) 19... Qc7 (19... N5c6 $15 20. Nde2 b4) 20. Nce2 $11 Rfe8 21. Rac1 Qa5 22. Bh6 d5 (22... Bh8 $14) 23. Bxg7 $16 Kxg7 24. Qg3 (24. Qg5 {seems wilder.} Qc7 25. Bb1 Qd6 26. f4) 24... N5c6 25. exd5 $2 (25. e5 $1 $16) 25... Nxd4 $1 $11 26. Nxd4 {d6 is the strong threat.} Bxd5 27. Qd6 Qc7 (27... Rcd8 $11 28. Qf4 Kg8) 28. Qxa6 $16 Qf4 29. Qxb5 Ba8 (29... Qf6 $16) 30. Qb4 $2 ({White should try} 30. Ne2 $1 $18 {[%cal Re2f4]} Qf6 31. Bd3) 30... Nd5 {[#]} (30... Qf6 $11 {keeps the balance.}) 31. Qd2 $1 Qf6 32. g3 Nc3 {[#]} (32... Ne7 $142) 33. Re1 $2 {[%mdl 8192] This costs White the game.} (33. Bf5 $1 $16 {[%cal Rf5c8][%mdl 512]} Ne2+ 34. Nxe2 Rxc1 35. Rxc1 Qxf5 36. Nf4) 33... Red8 $19 {Chess con chili.} ({Worse is} 33... Nxa2 34. Rxe8 Rxe8 35. Rd1 $11) 34. Rcd1 (34. Qe3 $142 Rxd4 35. Bb1) 34... Nxd1 35. Rxd1 Rxd4 36. Qxd4 Rxc2 37. Qxf6+ Kxf6 {[%mdl 4096] Endgame KRB-KR} 38. Ra1 Rb2 39. Kf1 Be4 40. Re1 $2 (40. b4 {keeps fighting.}) 40... Bd3+ 41. Kg2 Rxa2 42. Re3 Bf5 43. g4 (43. h4 $142) 43... Be6 44. b4 Rb2 45. Rf3+ Ke5 46. Re3+ Kd4 47. Kf3 Bd5+ 48. Kg3 Rb3 49. Kf4 f6 50. g5 f5 {( -> ...Rxe3)} 51. Rxb3 Bxb3 {KB-KP. Black mates.} 52. b5 Bd5 53. h4 Bb7 54. b6 Be4 55. h5 Bb7 56. Kg3 Ke4 57. h6 Bc6 58. Kh3 Kf4 59. Kh4 Bb7 60. f3 Bc6 61. Kh3 Kxf3 {KB-K3P} 62. Kh4 Kf4 63. Kh3 Kxg5 64. Kg3 Kxh6 {KB-KP} 65. Kf4 Bb7 66. Ke5 Kg5 67. Kd6 f4 68. Kc7 Be4 69. Kd6 Kf6 70. Kc5 Ke5 71. b7 Bxb7 72. Kb6 Bd5 73. Ka7 f3 74. Kb8 f2 75. Ka7 f1=Q 76. Kb8 Qf7 {[%csl Gd5][%cal Rf7b7]} 77. Kc8 Bc6 78. Kb8 Qb7# {Weighted Error Value: White=0.71/Black=0.36} 0-1

[Event "Benidorm Open-A 2022"]
[Site "Benidorm"]
[Date "2022.12.08"]
[Round "6.30"]
[White "Perez Candelario, Matias"]
[Black "Palomo Teruel, Xavier"]
[Result "1-0"]
[ECO "B54"]
[WhiteElo "2009"]
[BlackElo "2040"]
[Annotator "TA"]
[PlyCount "95"]
[EventDate "2022.12.03"]
[EventType "swiss"]
[EventCountry "ESP"]
[SourceTitle "playchess.com"]
[Source "ChessBase"]
[SourceQuality "1"]
[TimeControl "5400+30"]

{[%evp 12,95,13,0,7,0,0,-20,-7,-19,-12,-20,-21,-13,-18,-33,45,34,34,59,68,61,62,70,70,66,67,68,76,82,290,63,502,508,548,481,480,474,498,498,484,490,552,489,910,925,912,913,911,883,861,868,861,859,814,823,716,709,835,847,551,551,544,534,577,580,29965,29970,29983,29984,29984,29985,29985,29984,29984,29985,29985,29986,29986,29985,29988,29989,29989,29979,29987,29980]} 1. e4 c5 2. Nf3 d6 3. d4 cxd4 4. Nxd4 Nf6 {[%cal Bg8f6,Bf6d7,Bd7c5,Bc5d3][%mdl 32]} 5. Bd3 Nc6 6. Nxc6 bxc6 7. O-O g6 {B55: Sicilian: 2...d6 3 d4 cxd4 4 Nxd4 Nf6 5 f3.} 8. Qe2 Nd7 {[#]} 9. f4 $146 ({Predecessor:} 9. Bd2 Bg7 10. Bc3 O-O 11. Bxg7 Kxg7 12. b3 e5 13. Nd2 Nc5 14. Bc4 Qf6 15. Rad1 {1-0 (50) Saga,V (2113)-Kostelny,J (2172) Slovakia 2007}) 9... Bg7 {[%cal Og7b2] The position is equal.} 10. c3 Nc5 11. Be3 Nxd3 12. Qxd3 O-O 13. Na3 f5 ({Better is} 13... Rb8 $15 14. Rf2 Qa5) 14. Qc4+ $14 Kh8 15. exf5 (15. Qxc6 Rb8 $11) 15... gxf5 16. Qxc6 {White is much more active.} Rb8 17. Rf2 (17. Bxa7 Rxb2 18. Rf2 Bb7 $17) 17... Bb7 18. Qa4 Rg8 19. Re1 Be4 {Black is now going downhill.} 20. Nc4 (20. Bxa7 Ra8 21. c4 e5 $17) (20. Qxa7 Bf6 $11) 20... e5 $2 (20... Qe8 $16 {was necessary.} 21. Qxe8 (21. Qxa7 Ra8 $11) 21... Rgxe8) 21. Qd1 $2 (21. Bxa7 Ra8 22. fxe5 dxe5 $19) (21. Qxa7 $6 Bd5 $16) (21. Rd1 $18) 21... Qh4 $2 {[%mdl 8192]} (21... Qc7 $1 $14 22. Nxd6 Rbd8) 22. Nxd6 $18 {[%cal Rd6f7] [#]} (22. Bxa7 Rb7 23. Rxe4 (23. Be3 Bf6 $16) 23... fxe4 $16) 22... Bh6 23. Nxe4 ({Weaker is} 23. Bxa7 Bxf4 24. Nf7+ (24. Nxe4 Qxh2+ 25. Kf1 Qh1+ 26. Ke2 Qh5+ 27. Kf1 Qh1+ 28. Ke2 Qh5+ 29. Kf1 Qh1+ $11) 24... Kg7 25. Rxf4 Qxf4 26. Bxb8 (26. g3 $2 Rxb2 27. gxf4 Kxf7+ 28. Kf1 Bg2+ 29. Kg1 Bf3+ 30. Kf1 Bxd1 $19) 26... Kxf7 27. Qb3+ Kg7 $16) 23... fxe4 24. fxe5 Rbd8 25. Qe2 Bxe3 26. Qxe3 Rg4 27. h3 Rd3 (27... Rg5 $142 28. Qxe4 Qxe4 29. Rxe4 Re8) 28. hxg4 Rxe3 29. Rxe3 Qxg4 {[%mdl 4096] Endgame KQ-KRR} 30. Rfe2 Kg7 31. Rxe4 Qe6 32. b4 Kf7 33. c4 Ke7 34. c5 Qd5 35. e6 a6 36. g3 Qd1+ 37. Kf2 Qd5 38. Rf4 Qh1 39. Rh4 {Inhibits h5. White mates.} Qb1 40. c6 {[%cal Bc5c6,Bc6c7][%mdl 32]} Qf5+ 41. Rf4 Qh3 42. Rf7+ Ke8 43. c7 {[%cal Rc7c8]} Qh2+ 44. Kf3 {[%cal Rc7c8]} Qh5+ 45. g4 {[%cal Rc7c8]} Qd5+ 46. Kg3 Qd6+ 47. Kg2 Qc6+ 48. Rf3 {Weighted Error Value: White=0.28 (precise) /Black=0.57} 1-0